bitfinex/quotes_BTCUSD_20260101
["timestamp","ask_amount","ask_price","bid_price","bid_amount"]
[1767280223087,0.03067362,87983.0,87970.0,0.04603847]
[1767280223285,0.03067362,87985.0,87972.0,0.04905934]
[1767280224086,0.03067362,87986.0,87972.0,0.04905934]
[1767280224292,0.03067362,87985.0,87972.0,0.0481937]
[1767280225271,0.03067362,87986.0,87972.0,0.0481937]
[1767280226239,0.03067362,87986.0,87977.0,0.04905934]
[1767280226463,0.03067362,87989.0,87978.0,0.0114]
[1767280226641,0.08019996,87992.0,87979.0,0.44425429]
[1767280230177,0.04952634,87992.0,87979.0,0.44425429]
[1767280231087,0.08019996,87992.0,87979.0,0.44425429]
[1767280231296,0.04952634,87992.0,87979.0,0.44425429]
[1767280233159,0.01065145,87991.0,87979.0,0.44425429]
[1767280233363,0.01065145,87990.0,87979.0,0.44425429]
[1767280233518,0.03519071,87989.0,87979.0,0.44425429]
[1767280233699,0.03519071,87988.0,87979.0,0.44425429]
[1767280234036,0.02453926,87987.0,87979.0,0.44425429]
[1767280234342,0.02453926,87986.0,87978.0,0.0114]
[1767280234635,0.02453926,87985.0,87978.0,0.0114]
[1767280234835,0.04952634,87992.0,87978.0,0.0114]
[1767280234984,0.03518808,87991.0,87978.0,0.0114]
[1767280235185,0.03518808,87990.0,87978.0,0.0114]
[1767280235492,0.03518808,87989.0,87980.0,0.44425429]
[1767280235715,0.03518808,87988.0,87980.0,0.44425429]
[1767280235931,0.02453791,87987.0,87980.0,0.44425429]
[1767280236129,0.02453791,87986.0,87980.0,0.44425429]
[1767280236336,0.02453791,87985.0,87980.0,0.44425429]
[1767280236638,0.04952634,87992.0,87980.0,0.44425429]
[1767280236933,0.03518588,87991.0,87980.0,0.44419746]
[1767280237176,0.03518588,87990.0,87980.0,0.44419746]
[1767280237390,0.03518588,87989.0,87980.0,0.44419746]
[1767280237559,0.02453637,87988.0,87980.0,0.44419746]
[1767280237775,0.02453637,87987.0,87980.0,0.44419746]
[1767280237979,0.02453637,87986.0,87980.0,0.44419746]
[1767280238134,0.02453637,87985.0,87980.0,0.44419746]
[1767280238492,0.04952634,87992.0,87980.0,0.44419746]
[1767280238745,0.03518497,87991.0,87980.0,0.44419746]
[1767280238919,0.03518497,87990.0,87980.0,0.44419746]
[1767280239064,0.03518497,87989.0,87980.0,0.44419746]
[1767280239270,0.02453573,87988.0,87980.0,0.44419746]
[1767280239487,0.02453573,87987.0,87978.0,0.45565429]
[1767280239858,0.02453573,87986.0,87978.0,0.0114]
[1767280240052,0.02453573,87985.0,87978.0,0.0114]
[1767280240226,0.04952634,87992.0,87978.0,0.0114]
[1767280240391,0.03518542,87991.0,87980.0,0.44305092]
[1767280240594,0.03518542,87990.0,87980.0,0.44425429]
[1767280240779,0.03518542,87989.0,87980.0,0.44425429]
[1767280240977,0.02453605,87988.0,87980.0,0.44425429]
[1767280241178,0.02453605,87987.0,87980.0,0.44425429]
[1767280241378,0.02453605,87986.0,87980.0,0.44425429]
[1767280241591,0.02453605,87985.0,87980.0,0.44425429]
[1767280241945,0.03081852,87994.0,87979.0,0.04905934]
[1767280242147,0.01064968,87993.0,87979.0,0.04905934]
[1767280242440,0.03518645,87992.0,87980.0,0.44425429]
[1767280242681,0.03518645,87991.0,87980.0,0.44425429]
[1767280242858,0.03518645,87990.0,87980.0,0.44425429]
[1767280243185,0.03518645,87989.0,87980.0,0.44425429]
[1767280243362,0.02453677,87988.0,87980.0,0.44425429]
[1767280243666,0.02453677,87987.0,87980.0,0.44425429]
[1767280243983,0.02453677,87986.0,87980.0,0.44425429]
[1767280244135,0.02453677,87985.0,87980.0,0.44425429]
[1767280244338,0.08034486,87994.0,87980.0,0.44425429]
[1767280244542,0.03519158,87993.0,87980.0,0.44425429]
[1767280244858,0.03519158,87992.0,87980.0,0.44425429]
[1767280245040,0.03519158,87991.0,87980.0,0.44425429]
[1767280245248,0.03519158,87990.0,87980.0,0.44425429]
[1767280245445,0.03519158,87989.0,87980.0,0.44425429]
[1767280245643,0.03519158,87988.0,87980.0,0.44425429]
[1767280245845,0.02454035,87987.0,87980.0,0.44425429]
[1767280246066,0.02454035,87986.0,87980.0,0.44425429]
[1767280246285,0.02454035,87985.0,87980.0,0.44425429]
[1767280246492,0.02454035,87984.0,87980.0,0.44425429]
[1767280246660,0.08034486,87994.0,87980.0,0.44425429]
[1767280246863,0.03519759,87993.0,87980.0,0.44425429]
[1767280247065,0.03519759,87992.0,87980.0,0.44425429]
[1767280247286,0.03519759,87991.0,87980.0,0.44425429]
[1767280247462,0.03519759,87990.0,87980.0,0.44425429]
[1767280247667,0.03519759,87989.0,87980.0,0.44425429]
[1767280247867,0.03519759,87988.0,87980.0,0.44425429]
[1767280248090,0.02454455,87987.0,87980.0,0.44425429]
[1767280248406,0.02454455,87986.0,87980.0,0.44425429]
[1767280248715,0.02454455,87985.0,87980.0,0.44425429]
[1767280248847,0.02454455,87984.0,87980.0,0.44425429]
[1767280249051,0.03067362,87993.0,87980.0,0.44425429]
[1767280249357,0.06588044,87992.0,87980.0,0.44425429]
[1767280249551,0.03520682,87991.0,87980.0,0.44425429]
[1767280249750,0.03520682,87990.0,87980.0,0.44425429]
[1767280249956,0.03520682,87989.0,87980.0,0.44425429]
[1767280250178,0.03520682,87988.0,87980.0,0.44425429]
[1767280250376,0.03520682,87987.0,87980.0,0.44425429]
[1767280250588,0.02455099,87986.0,87980.0,0.44425429]
[1767280250797,0.02455099,87985.0,87980.0,0.44425429]
[1767280251010,0.02455099,87984.0,87979.0,0.04905934]
[1767280251215,0.02455099,87983.0,87979.0,0.04905934]
[1767280251392,0.03067362,87991.0,87979.0,0.04905934]
[1767280251600,0.01066304,87990.0,87979.0,0.04905934]
[1767280251797,0.03523068,87989.0,87979.0,0.04905934]
[1767280251996,0.03523068,87988.0,87979.0,0.04905934]
[1767280252201,0.03523068,87987.0,87979.0,0.04905934]
[1767280252438,0.03523068,87986.0,87979.0,0.04905934]
[1767280252677,0.03523068,87985.0,87979.0,0.04905934]
[1767280252918,0.02456764,87984.0,87979.0,0.04905934]
[1767280253120,0.02456764,87983.0,87979.0,0.04905934]
[1767280253330,0.02456764,87982.0,87979.0,0.04905934]
[1767280253504,0.02456764,87981.0,87979.0,0.04905934]
[1767280253722,0.03067362,87990.0,87979.0,0.04905934]
[1767280253925,0.0106673,87989.0,87980.0,0.44425429]
[1767280254148,0.03524477,87988.0,87980.0,0.44425429]
[1767280254302,0.03524477,87987.0,87980.0,0.44425429]
[1767280254502,0.03524477,87986.0,87980.0,0.44425429]
[1767280254700,0.03524477,87985.0,87978.0,0.0114]
[1767280254920,0.03524477,87984.0,87978.0,0.0114]
[1767280255163,0.02457747,87983.0,87978.0,0.0114]
[1767280255362,0.02457747,87982.0,87978.0,0.0114]
[1767280255533,0.02457747,87981.0,87978.0,0.0114]
[1767280255745,0.03067362,87989.0,87978.0,0.0114]
[1767280256313,0.03525653,87988.0,87979.0,0.44425429]
[1767280256538,0.0245837,87987.0,87979.0,0.44425429]
[1767280256738,0.01067284,87986.0,87979.0,0.44425429]
[1767280256995,0.0245837,87985.0,87978.0,0.0114]
[1767280257149,0.01067284,87984.0,87978.0,0.0114]
[1767280257348,0.03525651,87983.0,87978.0,0.010851]
[1767280257561,0.0245837,87982.0,87978.0,0.010851]
[1767280257974,0.0245837,87981.0,87978.0,0.010851]
[1767280258201,0.0245837,87980.0,87978.0,0.010851]
[1767280258524,0.03067362,87988.0,87978.0,0.010851]
[1767280258751,0.01067291,87987.0,87978.0,0.010851]
[1767280258953,0.03526347,87986.0,87978.0,0.010851]
[1767280259164,0.03526347,87985.0,87978.0,0.010851]
[1767280259369,0.03526347,87984.0,87978.0,0.010851]
[1767280259574,0.03526347,87983.0,87978.0,0.010851]
[1767280259787,0.02459056,87982.0,87978.0,0.010851]
[1767280259992,0.02459056,87981.0,87978.0,0.010851]
[1767280260188,0.02459056,87980.0,87978.0,0.010851]
[1767280260396,0.03067362,87988.0,87978.0,0.010851]
[1767280260610,0.03526383,87987.0,87978.0,0.010851]
[1767280260831,0.03526383,87986.0,87978.0,0.010851]
[1767280261037,0.03526383,87985.0,87978.0,0.010851]
[1767280261272,0.03526383,87984.0,87978.0,0.010851]
[1767280261467,0.03526383,87983.0,87978.0,0.010851]
[1767280261671,0.02459081,87982.0,87978.0,0.010851]
[1767280261872,0.02459081,87981.0,87978.0,0.05659777]
[1767280262075,0.02459081,87980.0,87978.0,0.05659777]
[1767280262278,0.03067362,87988.0,87978.0,0.05659777]
[1767280262478,0.02459107,87987.0,87978.0,0.50085206]
[1767280262792,0.02459107,87986.0,87978.0,0.05659777]
[1767280262985,0.02459107,87985.0,87978.0,0.05659777]
[1767280263138,0.02459107,87984.0,87978.0,0.05659777]
[1767280263340,0.02459107,87983.0,87978.0,0.05659777]
[1767280263520,0.03067362,87988.0,87978.0,0.05659777]
[1767280264068,0.03067362,87989.0,87978.0,0.05659777]
[1767280264266,0.02459107,87988.0,87978.0,0.05659777]
[1767280264565,0.05526469,87988.0,87978.0,0.05659777]
[1767280264786,0.02459107,87987.0,87978.0,0.05659777]
[1767280264948,0.02459107,87986.0,87978.0,0.05659777]
[1767280265138,0.02459107,87985.0,87978.0,0.05659777]
[1767280265342,0.02459107,87984.0,87978.0,0.05659777]
[1767280265546,0.02459107,87983.0,87978.0,0.05659777]
[1767280265747,0.02459107,87982.0,87978.0,0.05659777]
[1767280266085,0.02459107,87981.0,87978.0,0.05659777]
[1767280266295,0.02459107,87980.0,87978.0,0.05659777]
[1767280266500,0.03067362,87988.0,87978.0,0.05659777]
[1767280267251,0.02459188,87987.0,87978.0,0.05659777]
[1767280267455,0.02459188,87986.0,87978.0,0.05659777]
[1767280267674,0.02459188,87985.0,87978.0,0.05659777]
[1767280267896,0.02459188,87984.0,87978.0,0.05659777]
[1767280268212,0.02459188,87983.0,87978.0,0.05659777]
[1767280268388,0.02459188,87982.0,87978.0,0.05659777]
[1767280268595,0.03067362,87988.0,87978.0,0.05659777]
[1767280268596,0.02459188,87981.0,87978.0,0.010851]
[1767280268920,0.02459188,87980.0,87978.0,0.010851]
[1767280269115,0.03067362,87988.0,87978.0,0.010851]
[1767280269319,0.02459305,87987.0,87978.0,0.010851]
[1767280273525,0.01067418,87986.0,87978.0,0.010851]
[1767280273917,0.03526723,87985.0,87978.0,0.010851]
[1767280274126,0.03526723,87984.0,87978.0,0.010851]
[1767280274329,0.03526723,87983.0,87978.0,0.010851]
[1767280274503,0.02459305,87982.0,87978.0,0.010851]
[1767280274705,0.02459305,87981.0,87978.0,0.010851]
[1767280274934,0.02459305,87980.0,87978.0,0.010851]
[1767280275127,0.02459305,87979.0,87978.0,0.010851]
[1767280275731,0.02459305,87987.0,87978.0,0.010851]
[1767280275933,0.01067422,87986.0,87978.0,0.010851]
[1767280276094,0.03526727,87985.0,87978.0,0.010851]
[1767280276269,0.03526727,87984.0,87978.0,0.010851]
[1767280276492,0.03526727,87983.0,87978.0,0.010851]
[1767280276699,0.02459305,87982.0,87978.0,0.010851]
[1767280276949,0.02459305,87981.0,87978.0,0.010851]
[1767280277159,0.02459305,87980.0,87978.0,0.010851]
[1767280277377,0.02459305,87979.0,87978.0,0.010851]
[1767280277955,0.02459305,87987.0,87978.0,0.010851]
[1767280278154,0.03526732,87986.0,87978.0,0.010851]
[1767280278361,0.03526732,87985.0,87978.0,0.010851]
[1767280278560,0.03526732,87984.0,87978.0,0.010851]
[1767280278769,0.03526732,87983.0,87978.0,0.010851]
[1767280278973,0.02459305,87982.0,87978.0,0.010851]
[1767280279246,0.02459305,87981.0,87978.0,0.010851]
[1767280279461,0.02459305,87980.0,87978.0,0.010851]
[1767280279708,0.02459305,87979.0,87978.0,0.010851]
[1767280279894,0.02459305,87987.0,87978.0,0.010851]
[1767280280141,0.01067432,87986.0,87978.0,0.010851]
[1767280280351,0.03526737,87985.0,87978.0,0.010851]
[1767280280587,0.03526737,87984.0,87978.0,0.010851]
[1767280280806,0.03526737,87983.0,87978.0,0.010851]
[1767280281023,0.02459305,87982.0,87978.0,0.010851]
[1767280281233,0.02459305,87981.0,87978.0,0.010851]
[1767280281487,0.02459305,87980.0,87978.0,0.010851]
[1767280281702,0.02459305,87979.0,87978.0,0.010851]
[1767280282312,0.02459305,87987.0,87978.0,0.010851]
[1767280282549,0.0106744,87986.0,87978.0,0.010851]
[1767280282692,0.03526745,87985.0,87978.0,0.010851]
[1767280282901,0.03526745,87984.0,87978.0,0.010851]
[1767280283107,0.03526745,87983.0,87978.0,0.010851]
[1767280283312,0.03526746,87982.0,87978.0,0.010851]
[1767280283687,0.02459305,87981.0,87978.0,0.010851]
[1767280283858,0.02459305,87980.0,87978.0,0.010851]
[1767280284080,0.02459305,87979.0,87978.0,0.010851]
[1767280284234,0.02459305,87987.0,87978.0,0.010851]
[1767280284428,0.03526749,87986.0,87978.0,0.010851]
[1767280284639,0.03526749,87985.0,87978.0,0.010851]
[1767280284946,0.03526749,87984.0,87978.0,0.010851]
[1767280285270,0.03526749,87983.0,87978.0,0.010851]
[1767280285473,0.02459305,87982.0,87978.0,0.010851]
[1767280285679,0.02459305,87981.0,87978.0,0.010851]
[1767280285876,0.02459305,87980.0,87978.0,0.010851]
[1767280286039,0.02459305,87979.0,87978.0,0.010851]
[1767280286444,0.02459305,87987.0,87978.0,0.010851]
[1767280286647,0.03526748,87986.0,87978.0,0.010851]
[1767280286885,0.03067362,87988.0,87978.0,0.010851]
[1767280286886,0.03526748,87985.0,87978.0,0.010851]
[1767280287079,0.03526748,87984.0,87978.0,0.010851]
[1767280287252,0.03526748,87983.0,87978.0,0.010851]
[1767280287449,0.03526749,87982.0,87978.0,0.010851]
[1767280287667,0.02459305,87981.0,87978.0,0.010851]
[1767280287889,0.02459305,87980.0,87978.0,0.010851]
[1767280288092,0.02459305,87979.0,87978.0,0.010851]
[1767280288290,0.02290871,87979.0,87978.0,0.010851]
[1767280288491,0.03067362,87988.0,87978.0,0.07130404]
[1767280288693,0.01067445,87987.0,87978.0,0.07130404]
[1767280289026,0.01067445,87986.0,87978.0,0.05993757]
[1767280289254,0.01067445,87985.0,87978.0,0.07130404]
[1767280289405,0.01067445,87984.0,87979.0,0.01136634]
[1767280289612,0.03067362,87989.0,87979.0,0.01136634]
[1767280289812,0.01067361,87988.0,87979.0,0.01136634]
[1767280290136,0.01067361,87987.0,87978.0,0.02221747]
[1767280290336,0.01067361,87986.0,87979.0,0.01136634]
[1767280290496,0.01067361,87985.0,87979.0,0.01136634]
[1767280290696,0.03067362,87991.0,87979.0,0.01136634]
[1767280291032,0.01067274,87990.0,87979.0,0.01136634]
[1767280291239,0.01067274,87989.0,87979.0,0.01136634]
[1767280291387,0.01067274,87988.0,87979.0,0.01136634]
[1767280291583,0.01067274,87987.0,87980.0,0.01136621]
[1767280291789,0.01067274,87986.0,87979.0,0.01136634]
[1767280291987,0.01067274,87985.0,87979.0,0.01136634]
[1767280292187,0.03067362,87991.0,87979.0,0.01136634]
[1767280292397,0.01067228,87990.0,87979.0,0.01136634]
[1767280292630,0.01067228,87989.0,87980.0,0.01136621]
[1767280292944,0.01067228,87988.0,87979.0,0.01136634]
[1767280293160,0.01067228,87987.0,87979.0,0.01136634]
[1767280293442,0.03067362,87991.0,87979.0,0.01136634]
[1767280293443,0.01067228,87986.0,87979.0,0.01136634]
[1767280293651,0.01067228,87985.0,87979.0,0.01136634]
[1767280293799,0.03067362,87991.0,87980.0,0.01136621]
[1767280294010,0.01067165,87990.0,87981.0,0.44417281]
[1767280294210,0.01067165,87989.0,87981.0,0.44417281]
[1767280294459,0.01067165,87988.0,87981.0,0.44417281]
[1767280294638,0.01067165,87987.0,87981.0,0.44417281]
[1767280294837,0.01067165,87986.0,87980.0,0.01136621]
[1767280295062,0.01067165,87985.0,87978.0,0.07130404]
[1767280295214,0.03067362,87991.0,87979.0,0.01136634]
[1767280295415,0.01067118,87990.0,87979.0,0.01136634]
[1767280295705,0.01067118,87989.0,87979.0,0.01136634]
[1767280295821,0.01067118,87988.0,87979.0,0.01136634]
[1767280296017,0.01067118,87987.0,87979.0,0.01136634]
[1767280296262,0.01067118,87986.0,87979.0,0.01136634]
[1767280296469,0.03067362,87991.0,87979.0,0.01136634]
[1767280296470,0.01067118,87985.0,87979.0,0.01136634]
[1767280296725,0.03067362,87991.0,87979.0,0.01136634]
[1767280296933,0.01067101,87990.0,87979.0,0.01136634]
[1767280297126,0.03067362,87991.0,87979.0,0.01136634]
[1767280297127,0.01067101,87989.0,87979.0,0.01136634]
[1767280297345,0.01067101,87988.0,87979.0,0.01136634]
[1767280297546,0.01067101,87987.0,87979.0,0.01136634]
[1767280297758,0.01067101,87986.0,87979.0,0.01136634]
[1767280297955,0.01067101,87985.0,87979.0,0.01136634]
[1767280298140,0.03067362,87991.0,87979.0,0.01136634]
[1767280298367,0.01067088,87990.0,87979.0,0.01136634]
[1767280298549,0.04823405,87979.0,87978.0,0.010851]
[1767280298750,0.001099,87979.0,87978.0,0.010851]
[1767280298955,0.04713505,87984.0,87978.0,0.010851]
[1767280299265,0.04713505,87982.0,87978.0,0.010851]
[1767280299859,0.04713505,87982.0,87978.0,0.009752]
[1767280300087,0.04713505,87982.0,87979.0,0.0114]
[1767280300310,0.02458584,87981.0,87979.0,0.0114]
[1767280300492,0.02458584,87981.0,87979.0,0.00286869]
[1767280300947,0.07172089,87981.0,87979.0,0.00286869]
[1767280301151,0.02458584,87980.0,87979.0,0.00286869]
[1767280304338,0.07172089,87980.0,87979.0,0.00286869]
[1767280305514,0.08239124,87980.0,87979.0,0.00286869]
[1767280305709,0.08239124,87980.0,87964.0,0.06045485]
[1767280305710,0.04713505,87979.0,87964.0,0.04908657]
[1767280305891,0.0717205,87978.0,87965.0,0.05692]
[1767280306091,0.02458545,87977.0,87965.0,0.05692]
[1767280307241,0.02458545,87977.0,87965.0,0.06828815]
[1767280308306,0.02458545,87977.0,87965.0,0.05692]
[1767280308461,0.02458545,87977.0,87965.0,0.06828815]
[1767280308664,0.02458545,87977.0,87965.0,0.05692]
[1767280311268,0.04713505,87978.0,87965.0,0.05692]
[1767280313635,0.04713505,87978.0,87968.0,0.44417281]
[1767280313836,0.04923765,87985.0,87968.0,0.44417281]
[1767280314054,0.03073181,87987.0,87968.0,0.44417281]
[1767280314055,0.08447841,87984.0,87968.0,0.44417281]
[1767280314281,0.03524076,87983.0,87969.0,0.01136764]
[1767280314417,0.03524076,87982.0,87969.0,0.01136764]
[1767280314626,0.03524076,87981.0,87968.0,0.45554058]
[1767280314842,0.0245747,87980.0,87968.0,0.45554058]
[1767280315012,0.0245747,87979.0,87968.0,0.45554058]
[1767280315223,0.0245747,87978.0,87968.0,0.45554058]
[1767280315410,0.04923765,87983.0,87968.0,0.45554058]
[1767280315618,0.03523918,87982.0,87968.0,0.45554058]
[1767280315816,0.03523918,87981.0,87968.0,0.45554058]
[1767280316016,0.0245736,87980.0,87969.0,0.01136764]
[1767280316363,0.0245736,87979.0,87969.0,0.01136764]
[1767280316568,0.0245736,87978.0,87969.0,0.01136764]
[1767280316867,0.04923765,87983.0,87968.0,0.45554058]
[1767280317058,0.03523852,87982.0,87968.0,0.45554058]
[1767280317247,0.03523852,87981.0,87968.0,0.45554058]
[1767280317446,0.04923765,87983.0,87968.0,0.45554058]
[1767280317447,0.02457315,87980.0,87968.0,0.45554058]
[1767280317618,0.02457315,87979.0,87968.0,0.45554058]
[1767280317818,0.02457315,87978.0,87968.0,0.45554058]
[1767280318045,0.04923765,87983.0,87968.0,0.45554058]
[1767280318249,0.03523798,87982.0,87968.0,0.45554058]
[1767280318430,0.03523798,87981.0,87968.0,0.45554058]
[1767280318644,0.02457277,87980.0,87968.0,0.45554058]
[1767280318845,0.02457277,87979.0,87968.0,0.45554058]
[1767280319135,0.02457277,87978.0,87968.0,0.45554058]
[1767280319300,0.04923765,87983.0,87968.0,0.45554058]
[1767280319509,0.03523727,87982.0,87968.0,0.45554058]
[1767280319667,0.03523727,87981.0,87968.0,0.45554058]
[1767280319872,0.02457221,87980.0,87969.0,0.01136764]
[1767280320208,0.02457221,87979.0,87968.0,0.45554058]
[1767280320413,0.02457221,87978.0,87968.0,0.45554058]
[1767280320573,0.04923765,87983.0,87968.0,0.45554058]
[1767280320777,0.03523781,87982.0,87968.0,0.45554058]
[1767280320993,0.03523781,87981.0,87968.0,0.45554058]
[1767280321311,0.0245726,87980.0,87969.0,0.01136764]
[1767280321514,0.04923765,87978.0,87966.0,0.01136802]
[1767280322018,0.04923765,87978.0,87967.0,0.01136789]
[1767280322394,0.04923765,87978.0,87968.0,0.44417281]
[1767280322721,0.04923765,87986.0,87968.0,0.45554058]
[1767280322917,0.04923765,87984.0,87968.0,0.45554058]
[1767280323120,0.04923765,87982.0,87968.0,0.45554058]
[1767280323463,0.08447697,87981.0,87968.0,0.45554058]
[1767280323668,0.02457357,87980.0,87968.0,0.45554058]
[1767280323860,0.02402457,87980.0,87971.0,0.01136738]
[1767280324062,0.04923765,87986.0,87972.0,0.0114]
[1767280324197,0.01066571,87985.0,87974.0,0.01136699]
[1767280324401,0.01066571,87984.0,87973.0,0.01136712]
[1767280324602,0.01066571,87983.0,87974.0,0.44417281]
[1767280324804,0.03073181,87989.0,87975.0,0.01136686]
[1767280325008,0.01066625,87988.0,87975.0,0.01136686]
[1767280325227,0.01066625,87987.0,87975.0,0.01136686]
[1767280325428,0.01066625,87986.0,87976.0,0.01136673]
[1767280325604,0.01066625,87985.0,87976.0,0.01136673]
[1767280325812,0.01066625,87984.0,87975.0,0.45553967]
[1767280326066,0.01066625,87983.0,87975.0,0.45553967]
[1767280326246,0.03073181,87989.0,87976.0,0.01136673]
[1767280326411,0.01066749,87988.0,87976.0,0.01136673]
[1767280326609,0.01066749,87987.0,87976.0,0.01136673]
[1767280326813,0.01066749,87986.0,87976.0,0.01136673]
[1767280327150,0.01066749,87985.0,87976.0,0.01136673]
[1767280327308,0.01066749,87984.0,87976.0,0.01136673]
[1767280327513,0.01066749,87983.0,87976.0,0.01136673]
[1767280327844,0.03073181,87989.0,87976.0,0.01136673]
[1767280328032,0.01066824,87988.0,87976.0,0.01136673]
[1767280328235,0.01066824,87987.0,87977.0,0.0113666]
[1767280328419,0.01066824,87986.0,87976.0,0.01136673]
[1767280328616,0.01066824,87985.0,87976.0,0.01136673]
[1767280328857,0.01066824,87984.0,87976.0,0.01136673]
[1767280329175,0.01066824,87983.0,87976.0,0.01136673]
[1767280329377,0.03073181,87989.0,87976.0,0.01136673]
[1767280329579,0.01066921,87988.0,87977.0,0.0113666]
[1767280329727,0.01066921,87987.0,87977.0,0.0113666]
[1767280329919,0.01066921,87986.0,87977.0,0.0113666]
[1767280330118,0.01066921,87985.0,87977.0,0.0113666]
[1767280330324,0.01066921,87984.0,87977.0,0.0113666]
[1767280330524,0.01066921,87983.0,87977.0,0.0113666]
[1767280330763,0.03073181,87989.0,87977.0,0.0113666]
[1767280330987,0.01066925,87988.0,87977.0,0.0113666]
[1767280331132,0.01066925,87987.0,87977.0,0.0113666]
[1767280331326,0.01066925,87986.0,87977.0,0.0113666]
[1767280331599,0.01066925,87985.0,87977.0,0.0113666]
[1767280331788,0.01066925,87984.0,87977.0,0.0113666]
[1767280332001,0.01066925,87983.0,87975.0,0.45553967]
[1767280332303,0.03072728,87989.0,87976.0,0.01136673]
[1767280332527,0.01066935,87988.0,87976.0,0.01136673]
[1767280332734,0.01066935,87987.0,87976.0,0.01136673]
[1767280332921,0.01066935,87986.0,87976.0,0.01136673]
[1767280333123,0.01066935,87985.0,87975.0,0.45553967]
[1767280333328,0.01066935,87984.0,87975.0,0.45553967]
[1767280333524,0.01066935,87983.0,87975.0,0.45553967]
[1767280333692,0.03072728,87989.0,87976.0,0.01136673]
[1767280333885,0.01066938,87988.0,87976.0,0.01136673]
[1767280334096,0.01066938,87987.0,87976.0,0.01136673]
[1767280334332,0.01066938,87986.0,87976.0,0.01136673]
[1767280334484,0.03072728,87989.0,87976.0,0.01136673]
[1767280334691,0.01066941,87988.0,87977.0,0.0113666]
[1767280334890,0.01066941,87987.0,87977.0,0.0113666]
[1767280335101,0.01066941,87986.0,87977.0,0.0113666]
[1767280335459,0.01066941,87985.0,87977.0,0.0113666]
[1767280335673,0.01066941,87984.0,87977.0,0.0113666]
[1767280335807,0.03525149,87983.0,87977.0,0.0113666]
[1767280336014,0.02458208,87982.0,87977.0,0.0113666]
[1767280336212,0.02458208,87981.0,87977.0,0.0113666]
[1767280336412,0.03072728,87989.0,87981.0,0.00055]
[1767280336629,0.01066929,87988.0,87982.0,0.0114]
[1767280336840,0.03525118,87987.0,87982.0,0.0114]
[1767280337041,0.03525118,87986.0,87982.0,0.0114]
[1767280337261,0.03525118,87985.0,87982.0,0.0114]
[1767280337484,0.03525118,87984.0,87982.0,0.0114]
[1767280337686,0.03525118,87983.0,87982.0,0.0114]
[1767280347219,0.01640823,87983.0,87982.0,0.0114]
[1767280347400,0.04923765,87991.0,87983.0,0.01136583]
[1767280347765,0.04923765,87991.0,87982.0,0.02276596]
[1767280347899,0.04923765,87991.0,87983.0,0.01136583]
[1767280348102,0.04923765,87991.0,87982.0,0.02276596]
[1767280349358,0.04923765,87991.0,87983.0,0.01136583]
[1767280350343,0.04923765,87991.0,87982.0,0.0114]
[1767280351242,0.0001449,87994.0,87982.0,0.0114]
[1767280351447,0.0001449,87994.0,87984.0,0.44416548]
[1767280351863,0.04524328,87994.0,87984.0,0.44416548]
[1767280353762,0.04524328,87994.0,87984.0,0.45553118]
[1767280354413,0.04524328,87994.0,87985.0,0.01136557]
[1767280354811,0.04524328,87994.0,87984.0,0.45553118]
[1767280356066,0.04524328,87994.0,87985.0,0.01136557]
[1767280356292,0.0001449,87994.0,87987.0,0.01136531]
[1767280356695,0.0001449,87994.0,87988.0,0.01136518]
[1767280357014,0.0001449,87994.0,87989.0,0.0114]
[1767280360340,0.0001449,87994.0,87989.0,0.00371553]
[1767280366082,0.0001449,87994.0,87990.0,0.04921523]
[1767280366236,0.0001449,87994.0,87989.0,0.01508058]
[1767280366442,0.0001449,87994.0,87990.0,0.01136492]
[1767280367042,0.0001449,87994.0,87989.0,0.01508058]
[1767280367043,0.02470568,87994.0,87989.0,0.01508058]
[1767280367245,0.02456078,87993.0,87990.0,0.01136492]
[1767280367448,0.0001449,87994.0,87990.0,0.01136492]
[1767280367648,0.0001449,87994.0,87991.0,0.01136479]
[1767280368607,0.0001449,87994.0,87992.0,0.05682271]
[1767280368793,0.00051589,87997.0,87994.0,0.01136441]
[1767280368986,0.00051589,87997.0,87994.0,0.06818589]
[1767280369585,0.00051589,87997.0,87995.0,0.05682083]
[1767280369827,0.04509838,88009.0,87998.0,0.01136389]
[1767280369982,0.01065623,88008.0,87999.0,0.44416548]
[1767280370179,0.04509838,88009.0,87999.0,0.44416548]
[1767280370180,0.01065623,88007.0,87999.0,0.44416548]
[1767280370432,0.04509838,88009.0,87997.0,0.4555295]
[1767280370741,0.01065441,88008.0,87999.0,0.44416548]
[1767280370916,0.01065441,88007.0,87999.0,0.44410866]
[1767280371125,0.04509838,88009.0,87999.0,0.44410866]
[1767280371476,0.0001449,88011.0,88000.0,0.01136363]
[1767280371603,0.01065294,88010.0,88000.0,0.01136363]
[1767280371794,0.01065294,88009.0,88000.0,0.01136363]
[1767280371995,0.0001449,88011.0,88000.0,0.01136363]
[1767280372219,0.01065294,88010.0,88000.0,0.01136363]
[1767280372425,0.01065335,88009.0,87999.0,0.45552924]
[1767280372628,0.0001449,88011.0,87999.0,0.45552924]
[1767280372829,0.01065171,88010.0,87999.0,0.44785198]
[1767280373040,0.01065171,88009.0,87999.0,0.43648822]
[1767280373234,0.04925668,88010.0,87999.0,0.43648822]
[1767280373435,0.04925668,88010.0,87996.0,0.0114]
[1767280373436,0.000549,87999.0,87996.0,0.02276415]
[1767280373634,0.000549,87999.0,87996.0,0.0114]
[1767280374040,0.04925668,88010.0,87996.0,0.0114]
[1767280374240,0.05990755,88009.0,87996.0,0.0114]
[1767280374459,0.04925668,88009.0,87996.0,0.0114]
[1767280376441,0.04925668,88009.0,87999.0,0.44416548]
[1767280376642,0.04925668,88009.0,87999.0,0.44361648]
[1767280381030,0.0001449,88011.0,87999.0,0.44361648]
[1767280381259,0.03072728,88016.0,88004.0,0.04396317]
[1767280381458,0.0001449,88020.0,88011.0,0.000144]
[1767280381657,0.0001449,88020.0,88012.0,0.0114]
[1767280382858,0.02467945,88020.0,88012.0,0.0114]
[1767280383063,0.02453455,88019.0,88012.0,0.0114]
[1767280383289,0.0001449,88020.0,88012.0,0.0114]
[1767280384209,0.0001449,88020.0,88012.0,0.01085]
[1767280387220,0.0001449,88020.0,88012.0,0.01092217]
[1767280392661,0.04940158,88020.0,88012.0,0.01092217]
[1767280393006,0.02451131,88019.0,88012.0,0.01092217]
[1767280404567,0.01065464,88018.0,88012.0,0.01092217]
[1767280404736,0.02451131,88017.0,88012.0,0.01092217]
[1767280404935,0.02451131,88016.0,88012.0,0.01092217]
[1767280405136,0.02451131,88015.0,88012.0,0.01092217]
[1767280405287,0.04940158,88020.0,88012.0,0.01092217]
[1767280405638,0.03520735,88019.0,88012.0,0.01092217]
[1767280405855,0.03520735,88018.0,88012.0,0.01092217]
[1767280406044,0.02455069,88017.0,88012.0,0.01092217]
[1767280406248,0.02455069,88016.0,88012.0,0.01092217]
[1767280406459,0.02455069,88015.0,88012.0,0.01092217]
[1767280406686,0.04940158,88020.0,88012.0,0.01092217]
[1767280406860,0.03521185,88019.0,88012.0,0.01092217]